[Event "Late-Titled-Tuesday-Blitz-April-23-2024"]
[Site "Chess.com"]
[Date "2024.04.23"]
[Round "10"]
[White "martinmena"]
[Black "IngOscarArdila"]
[Result "0-1"]
[WhiteElo "2156"]
[BlackElo "2269"]
[TimeControl "180+1"]
[EndTime "15:58:03 PDT"]
[Termination "IngOscarArdila won by checkmate"]

1. c4 {[%clk 0:02:56.3]} 1... Nf6 {[%clk 0:03:00]} 2. g3 {[%clk 0:02:55.3]} 2...
e6 {[%clk 0:03:00.4]} 3. Bg2 {[%clk 0:02:54.6]} 3... Be7 {[%clk 0:03:01.3]} 4.
Nf3 {[%clk 0:02:53.4]} 4... O-O {[%clk 0:03:01.7]} 5. O-O {[%clk 0:02:52.3]}
5... d6 {[%clk 0:03:02.2]} 6. d4 {[%clk 0:02:50.7]} 6... Nbd7 {[%clk 0:03:02.7]}
7. Nc3 {[%clk 0:02:49.3]} 7... c6 {[%clk 0:03:03.1]} 8. e4 {[%clk 0:02:48.4]}
8... e5 {[%clk 0:03:03.1]} 9. d5 {[%clk 0:02:48.5]} 9... cxd5 {[%clk 0:03:02.9]}
10. cxd5 {[%clk 0:02:48.6]} 10... Nc5 {[%clk 0:03:03.1]} 11. Qc2 {[%clk
0:02:46.9]} 11... a5 {[%clk 0:03:03.6]} 12. Nd2 {[%clk 0:02:43.5]} 12... Bd7
{[%clk 0:03:02.9]} 13. a4 {[%clk 0:02:39.8]} 13... Rc8 {[%clk 0:03:02.6]} 14. b3
{[%clk 0:02:35.1]} 14... b5 {[%clk 0:03:00]} 15. axb5 {[%clk 0:02:32.2]} 15...
Qb6 {[%clk 0:02:49.5]} 16. Nc4 {[%clk 0:02:27.4]} 16... Qb8 {[%clk 0:02:46.1]}
17. Rxa5 {[%clk 0:02:14.4]} 17... Bd8 {[%clk 0:02:45]} 18. Ra2 {[%clk
0:02:07.9]} 18... Be7 {[%clk 0:02:26.8]} 19. b6 {[%clk 0:01:58.2]} 19... Bd8
{[%clk 0:02:26.5]} 20. Be3 {[%clk 0:01:38.6]} 20... Bxb6 {[%clk 0:02:21]} 21.
Nxb6 {[%clk 0:01:10.1]} 21... Qxb6 {[%clk 0:02:21.9]} 22. Na4 {[%clk 0:01:05.9]}
22... Bxa4 {[%clk 0:02:20.2]} 23. bxa4 {[%clk 0:01:06.8]} 23... Qa5 {[%clk
0:02:12.8]} 24. Bxc5 {[%clk 0:00:56.7]} 24... Rxc5 {[%clk 0:02:11.4]} 25. Qd3
{[%clk 0:00:37.7]} 25... Rfc8 {[%clk 0:02:10.1]} 26. h3 {[%clk 0:00:32]} 26...
Rc4 {[%clk 0:02:04.2]} 27. Rfa1 {[%clk 0:00:30.1]} 27... R8c5 {[%clk 0:01:59]}
28. Rb1 {[%clk 0:00:22.2]} 28... h6 {[%clk 0:01:57.9]} 29. Qb3 {[%clk
0:00:13.5]} 29... Kh7 {[%clk 0:01:48.2]} 30. Qb6 {[%clk 0:00:09.9]} 30... Rc1+
{[%clk 0:01:43.1]} 31. Kh2 {[%clk 0:00:08.9]} 31... Qe1 {[%clk 0:01:42.1]} 32.
Rxc1 {[%clk 0:00:02.9]} 32... Rxc1 {[%clk 0:01:41.6]} 33. f3 {[%clk 0:00:02.2]}
33... Nh5 {[%clk 0:01:38.9]} 34. Qf2 {[%clk 0:00:02.2]} 34... Qa5 {[%clk
0:01:27.1]} 35. g4 {[%clk 0:00:02.4]} 35... Nf4 {[%clk 0:01:26.4]} 36. Qd2
{[%clk 0:00:03]} 36... Qc5 {[%clk 0:01:22.8]} 37. Qf2 {[%clk 0:00:03]} 37... Qc4
{[%clk 0:01:21.8]} 38. Qd2 {[%clk 0:00:02.8]} 38... h5 {[%clk 0:01:08]} 39. a5
{[%clk 0:00:02.5]} 39... hxg4 {[%clk 0:01:06.3]} 40. hxg4 {[%clk 0:00:03]} 40...
Qc5 {[%clk 0:01:04.8]} 41. a6 {[%clk 0:00:02.6]} 41... Qg1+ {[%clk 0:01:04.2]}
42. Kg3 {[%clk 0:00:03.2]} 42... Ng6 {[%clk 0:01:00.3]} 43. a7 {[%clk
0:00:03.2]} 43... Rd1 {[%clk 0:00:57.5]} 44. a8=Q {[%clk 0:00:02.5]} 44... Rxd2
{[%clk 0:00:57.3]} 45. Rxd2 {[%clk 0:00:03.2]} 45... Qe3 {[%clk 0:00:56.3]} 46.
Qa2 {[%clk 0:00:03.3]} 46... Qf4+ {[%clk 0:00:56.4]} 47. Kf2 {[%clk 0:00:04]}
47... Qh2 {[%clk 0:00:54.9]} 48. Qc2 {[%clk 0:00:03.7]} 48... Nf4 {[%clk
0:00:54.7]} 49. Kf1 {[%clk 0:00:03.4]} 49... Qg3 {[%clk 0:00:52.8]} 50. Rf2
{[%clk 0:00:03.6]} 50... g6 {[%clk 0:00:51.1]} 51. Qd2 {[%clk 0:00:03.3]} 51...
Kg7 {[%clk 0:00:51.3]} 52. Qe3 {[%clk 0:00:03.2]} 52... Qh4 {[%clk 0:00:51.1]}
53. Ke1 {[%clk 0:00:03.1]} 53... Qd8 {[%clk 0:00:51.2]} 54. Kd2 {[%clk
0:00:02.7]} 54... Qa5+ {[%clk 0:00:51.3]} 55. Qc3 {[%clk 0:00:03.1]} 55... Qa2+
{[%clk 0:00:51.1]} 56. Qc2 {[%clk 0:00:03.2]} 56... Qa5+ {[%clk 0:00:50.5]} 57.
Kd1 {[%clk 0:00:02.8]} 57... Qb6 {[%clk 0:00:49.4]} 58. Rd2 {[%clk 0:00:02.7]}
58... Qg1+ {[%clk 0:00:48.9]} 59. Bf1 {[%clk 0:00:01.7]} 59... Qxf1# {[%clk
0:00:49.2]} 0-1

[Event "Late-Titled-Tuesday-Blitz-April-23-2024"]
[Site "Chess.com"]
[Date "2024.04.23"]
[Round "10"]
[White "Fandorine"]
[Black "Aygehovit1992"]
[Result "0-1"]
[WhiteElo "2916"]
[BlackElo "2739"]
[TimeControl "180+1"]
[EndTime "15:58:04 PDT"]
[Termination "Aygehovit1992 won on time"]

1. d4 {[%clk 0:03:00.9]} 1... Nf6 {[%clk 0:03:00.1]} 2. c4 {[%clk 0:02:56.8]}
2... g6 {[%clk 0:03:00.2]} 3. Nc3 {[%clk 0:02:56.4]} 3... Bg7 {[%clk 0:03:00.9]}
4. e4 {[%clk 0:02:56.5]} 4... d6 {[%clk 0:03:01.5]} 5. Be2 {[%clk 0:02:57]} 5...
O-O {[%clk 0:03:00.7]} 6. Nf3 {[%clk 0:02:57.2]} 6... Na6 {[%clk 0:02:59.7]} 7.
O-O {[%clk 0:02:55.9]} 7... e5 {[%clk 0:03:00.3]} 8. Re1 {[%clk 0:02:46.6]} 8...
Bg4 {[%clk 0:02:55.5]} 9. Be3 {[%clk 0:02:46.9]} 9... Re8 {[%clk 0:02:53.2]} 10.
d5 {[%clk 0:02:42.6]} 10... Nh5 {[%clk 0:02:39.4]} 11. g3 {[%clk 0:02:37.7]}
11... Nf6 {[%clk 0:02:23.8]} 12. a3 {[%clk 0:02:25.7]} 12... Nc5 {[%clk
0:02:09.8]} 13. Qc2 {[%clk 0:02:19.8]} 13... a5 {[%clk 0:01:54.1]} 14. b4 {[%clk
0:02:18.8]} 14... axb4 {[%clk 0:01:54.2]} 15. axb4 {[%clk 0:02:17.5]} 15... Rxa1
{[%clk 0:01:43]} 16. Rxa1 {[%clk 0:02:18.4]} 16... Ncxe4 {[%clk 0:01:43.3]} 17.
Nxe4 {[%clk 0:02:16.1]} 17... Nxe4 {[%clk 0:01:44.2]} 18. Qxe4 {[%clk
0:02:12.8]} 18... f5 {[%clk 0:01:43.9]} 19. Qb1 {[%clk 0:02:04.2]} 19... e4
{[%clk 0:01:42.3]} 20. Nd4 {[%clk 0:01:48.8]} 20... Bxd4 {[%clk 0:01:38.2]} 21.
Bxd4 {[%clk 0:01:48.9]} 21... Bxe2 {[%clk 0:01:38]} 22. Qb3 {[%clk 0:01:37]}
22... Qg5 {[%clk 0:00:45.4]} 23. Bb2 {[%clk 0:01:17.6]} 23... Qd2 {[%clk
0:00:43.4]} 24. c5 {[%clk 0:01:08.9]} 24... e3 {[%clk 0:00:37.9]} 25. Qc3 {[%clk
0:00:58.9]} 25... Qxc3 {[%clk 0:00:30.6]} 26. Bxc3 {[%clk 0:00:59.8]} 26... Bf3
{[%clk 0:00:27.4]} 27. cxd6 {[%clk 0:00:53.6]} 27... cxd6 {[%clk 0:00:26.2]} 28.
fxe3 {[%clk 0:00:52.6]} 28... Rxe3 {[%clk 0:00:26.7]} 29. Bf6 {[%clk 0:00:48.5]}
29... Bxd5 {[%clk 0:00:24.6]} 30. Rd1 {[%clk 0:00:43.6]} 30... Re6 {[%clk
0:00:21.8]} 31. Bg5 {[%clk 0:00:31.5]} 31... Bc6 {[%clk 0:00:22]} 32. Kf2 {[%clk
0:00:29.7]} 32... Kf7 {[%clk 0:00:21.6]} 33. Be3 {[%clk 0:00:24.3]} 33... Re4
{[%clk 0:00:19]} 34. Rd4 {[%clk 0:00:14.9]} 34... Rxd4 {[%clk 0:00:11.4]} 35.
Bxd4 {[%clk 0:00:13.5]} 35... Ke6 {[%clk 0:00:12.3]} 36. Ke3 {[%clk 0:00:12.9]}
36... Kd5 {[%clk 0:00:12.9]} 37. Bc3 {[%clk 0:00:09.7]} 37... Kc4 {[%clk
0:00:12.9]} 38. Be1 {[%clk 0:00:07.3]} 38... d5 {[%clk 0:00:12.6]} 39. h4 {[%clk
0:00:07.6]} 39... d4+ {[%clk 0:00:12.9]} 40. Kf4 {[%clk 0:00:07]} 40... Kd3
{[%clk 0:00:10.4]} 41. Bf2 {[%clk 0:00:02.5]} 41... Kc3 {[%clk 0:00:10.9]} 42.
Be1+ {[%clk 0:00:02.9]} 42... Kc2 {[%clk 0:00:10.2]} 43. h5 {[%clk 0:00:01.2]}
43... d3 {[%clk 0:00:06.7]} 0-1

[Event "Late-Titled-Tuesday-Blitz-April-23-2024"]
[Site "Chess.com"]
[Date "2024.04.23"]
[Round "10"]
[White "KNVB"]
[Black "Binary010"]
[Result "1-0"]
[WhiteElo "2713"]
[BlackElo "2818"]
[TimeControl "180+1"]
[EndTime "15:58:04 PDT"]
[Termination "KNVB won by resignation"]

1. d4 {[%clk 0:03:00.9]} 1... Nf6 {[%clk 0:03:00.1]} 2. Bf4 {[%clk 0:03:01]}
2... d5 {[%clk 0:03:00.1]} 3. e3 {[%clk 0:03:01.5]} 3... c5 {[%clk 0:03:00.4]}
4. c3 {[%clk 0:03:01.9]} 4... Nc6 {[%clk 0:03:00.4]} 5. Nd2 {[%clk 0:03:02.5]}
5... Bf5 {[%clk 0:02:57.8]} 6. Qb3 {[%clk 0:03:02.5]} 6... Qc8 {[%clk
0:02:57.8]} 7. Ngf3 {[%clk 0:03:02]} 7... c4 {[%clk 0:02:58]} 8. Qd1 {[%clk
0:03:01.8]} 8... e6 {[%clk 0:02:58.2]} 9. Nh4 {[%clk 0:02:59.5]} 9... Be4 {[%clk
0:02:55.3]} 10. f3 {[%clk 0:02:46.6]} 10... Bg6 {[%clk 0:02:54.3]} 11. e4 {[%clk
0:02:28.4]} 11... Nh5 {[%clk 0:02:45.2]} 12. Be3 {[%clk 0:02:24.5]} 12... Be7
{[%clk 0:02:42.4]} 13. Nxg6 {[%clk 0:01:53.8]} 13... hxg6 {[%clk 0:02:43.3]} 14.
Bf2 {[%clk 0:01:45.9]} 14... Qc7 {[%clk 0:02:14.4]} 15. g3 {[%clk 0:01:30.1]}
15... O-O-O {[%clk 0:01:32.5]} 16. Bg2 {[%clk 0:00:48]} 16... f5 {[%clk
0:01:32.2]} 17. O-O {[%clk 0:00:19.4]} 17... dxe4 {[%clk 0:01:13]} 18. fxe4
{[%clk 0:00:18.6]} 18... f4 {[%clk 0:01:13.8]} 19. Qg4 {[%clk 0:00:16]} 19...
Kb8 {[%clk 0:01:10.5]} 20. gxf4 {[%clk 0:00:08.2]} 20... Rdf8 {[%clk 0:00:58.9]}
21. Bg3 {[%clk 0:00:06.3]} 21... b5 {[%clk 0:00:40.9]} 22. e5 {[%clk 0:00:04.7]}
22... Rd8 {[%clk 0:00:28.4]} 23. Nf3 {[%clk 0:00:04.8]} 23... Rhf8 {[%clk
0:00:17.6]} 24. Qxe6 {[%clk 0:00:04.6]} 24... Nxf4 {[%clk 0:00:16.7]} 25. Bxf4
{[%clk 0:00:05.1]} 25... Rxf4 {[%clk 0:00:17.4]} 26. Nd2 {[%clk 0:00:03]} 26...
Nxd4 {[%clk 0:00:12.9]} 27. cxd4 {[%clk 0:00:02.3]} 27... Rfxd4 {[%clk
0:00:13.8]} 28. Nf3 {[%clk 0:00:02.9]} 28... Rd3 {[%clk 0:00:13.3]} 29. Qxg6
{[%clk 0:00:03.3]} 29... Bc5+ {[%clk 0:00:13.4]} 30. Kh1 {[%clk 0:00:03.8]}
30... Rh8 {[%clk 0:00:13.3]} 31. Qe4 {[%clk 0:00:04.2]} 31... Re3 {[%clk
0:00:12.2]} 32. Qf4 {[%clk 0:00:03.3]} 32... Qd7 {[%clk 0:00:10.3]} 33. Rae1
{[%clk 0:00:03.4]} 33... Rd3 {[%clk 0:00:09.7]} 34. e6+ {[%clk 0:00:03.8]} 34...
Qd6 {[%clk 0:00:09.4]} 35. Qxd6+ {[%clk 0:00:03.4]} 35... Bxd6 {[%clk
0:00:10.3]} 36. h3 {[%clk 0:00:02.9]} 36... Kc7 {[%clk 0:00:09.9]} 37. Re2
{[%clk 0:00:03.3]} 37... Re8 {[%clk 0:00:09.2]} 38. Nh4 {[%clk 0:00:03.1]} 38...
b4 {[%clk 0:00:06.5]} 39. Nf5 {[%clk 0:00:03.3]} 39... Bc5 {[%clk 0:00:06.9]}
40. Nxg7 {[%clk 0:00:03.1]} 40... Re7 {[%clk 0:00:07.5]} 41. Nf5 {[%clk
0:00:03.6]} 41... Re8 {[%clk 0:00:07.5]} 42. e7 {[%clk 0:00:03.1]} 42... c3
{[%clk 0:00:07.5]} 43. bxc3 {[%clk 0:00:04]} 43... bxc3 {[%clk 0:00:08.1]} 44.
Rc1 {[%clk 0:00:04.2]} 44... Kd7 {[%clk 0:00:06.2]} 45. Be4 {[%clk 0:00:03.6]}
45... Rxh3+ {[%clk 0:00:05.8]} 46. Kg2 {[%clk 0:00:04.3]} 46... Rh6 {[%clk
0:00:04.5]} 47. Nxh6 {[%clk 0:00:04.3]} 47... Bxe7 {[%clk 0:00:04.4]} 48. Bf5+
{[%clk 0:00:04.9]} 48... Kd6 {[%clk 0:00:04.5]} 49. Nf7+ {[%clk 0:00:04.9]} 1-0

[Event "Late-Titled-Tuesday-Blitz-April-23-2024"]
[Site "Chess.com"]
[Date "2024.04.23"]
[Round "10"]
[White "Slovineanu"]
[Black "SahibSinghKnight"]
[Result "1/2-1/2"]
[WhiteElo "2502"]
[BlackElo "2636"]
[TimeControl "180+1"]
[EndTime "15:58:04 PDT"]
[Termination "Game drawn by repetition"]

1. d4 {[%clk 0:02:59.6]} 1... d5 {[%clk 0:03:00]} 2. Nf3 {[%clk 0:02:57.4]} 2...
e6 {[%clk 0:03:00.1]} 3. c4 {[%clk 0:02:57.2]} 3... Nf6 {[%clk 0:02:59.1]} 4. e3
{[%clk 0:02:57.6]} 4... b6 {[%clk 0:02:58.3]} 5. b3 {[%clk 0:02:56.9]} 5... Bb7
{[%clk 0:02:57.9]} 6. Bd3 {[%clk 0:02:57.5]} 6... Nbd7 {[%clk 0:02:56.9]} 7. O-O
{[%clk 0:02:57.7]} 7... Bd6 {[%clk 0:02:56.5]} 8. Bb2 {[%clk 0:02:57.3]} 8...
O-O {[%clk 0:02:56.1]} 9. Nc3 {[%clk 0:02:58]} 9... Ne4 {[%clk 0:02:53.3]} 10.
Nb5 {[%clk 0:02:30.7]} 10... Be7 {[%clk 0:02:49]} 11. cxd5 {[%clk 0:02:27.7]}
11... exd5 {[%clk 0:02:49.9]} 12. Rc1 {[%clk 0:02:26.6]} 12... c6 {[%clk
0:02:45.9]} 13. Nc3 {[%clk 0:02:24.6]} 13... f5 {[%clk 0:02:45.6]} 14. Ne2
{[%clk 0:02:23.6]} 14... Bd6 {[%clk 0:02:44.4]} 15. Ne5 {[%clk 0:02:19.6]} 15...
c5 {[%clk 0:02:08.7]} 16. Nf4 {[%clk 0:02:10.9]} 16... Qe7 {[%clk 0:01:47.4]}
17. Nxd7 {[%clk 0:02:06.8]} 17... Qxd7 {[%clk 0:01:48.3]} 18. dxc5 {[%clk
0:01:46.4]} 18... bxc5 {[%clk 0:01:39.9]} 19. Bxe4 {[%clk 0:01:38]} 19... fxe4
{[%clk 0:01:40.8]} 20. Nxd5 {[%clk 0:01:25.1]} 20... Bxh2+ {[%clk 0:01:39.2]}
21. Kxh2 {[%clk 0:01:25.3]} 21... Bxd5 {[%clk 0:01:38.8]} 22. Kg1 {[%clk
0:01:20.5]} 22... Rfc8 {[%clk 0:01:25.6]} 23. Qh5 {[%clk 0:01:18.5]} 23... Qf7
{[%clk 0:01:18.9]} 24. Qg5 {[%clk 0:00:48.9]} 24... h6 {[%clk 0:01:08.4]} 25.
Qg3 {[%clk 0:00:47.5]} 25... c4 {[%clk 0:01:06.6]} 26. bxc4 {[%clk 0:00:44.2]}
26... Bxc4 {[%clk 0:01:06.6]} 27. Rfd1 {[%clk 0:00:35.7]} 27... Bxa2 {[%clk
0:01:04.2]} 28. Bd4 {[%clk 0:00:20.5]} 28... Bc4 {[%clk 0:00:51.8]} 29. Rc3
{[%clk 0:00:18.5]} 29... Rc6 {[%clk 0:00:47.7]} 30. Rdc1 {[%clk 0:00:18.5]}
30... Rac8 {[%clk 0:00:47.6]} 31. Qe5 {[%clk 0:00:17.6]} 31... Bd5 {[%clk
0:00:22]} 32. Rxc6 {[%clk 0:00:17.1]} 32... Bxc6 {[%clk 0:00:22.6]} 33. Rc5
{[%clk 0:00:13.1]} 33... Bb7 {[%clk 0:00:13.5]} 34. Rxc8+ {[%clk 0:00:12.1]}
34... Bxc8 {[%clk 0:00:14.4]} 35. Qb8 {[%clk 0:00:12.6]} 35... Qb7 {[%clk
0:00:14.1]} 36. Qxa7 {[%clk 0:00:12.6]} 36... Qxa7 {[%clk 0:00:14.2]} 37. Bxa7
{[%clk 0:00:13.2]} 37... Kf7 {[%clk 0:00:15.1]} 38. Bd4 {[%clk 0:00:13.8]} 38...
Bb7 {[%clk 0:00:16]} 39. g3 {[%clk 0:00:13.6]} 39... g5 {[%clk 0:00:16.4]} 40.
Kg2 {[%clk 0:00:12.8]} 40... Kg6 {[%clk 0:00:16.9]} 41. g4 {[%clk 0:00:12.6]}
41... h5 {[%clk 0:00:16.5]} 42. gxh5+ {[%clk 0:00:12.6]} 42... Kxh5 {[%clk
0:00:17.4]} 43. Kg3 {[%clk 0:00:13.2]} 43... Bc8 {[%clk 0:00:17.8]} 44. Be5
{[%clk 0:00:13.4]} 44... Bg4 {[%clk 0:00:17.9]} 45. Bd4 {[%clk 0:00:13.8]} 45...
Bf3 {[%clk 0:00:18.2]} 46. Be5 {[%clk 0:00:13.9]} 46... Kg6 {[%clk 0:00:19.1]}
47. Bd4 {[%clk 0:00:14.3]} 47... Kf5 {[%clk 0:00:20]} 48. Bc5 {[%clk 0:00:14.7]}
48... Ke6 {[%clk 0:00:19.7]} 49. Bd4 {[%clk 0:00:14.4]} 49... Kf5 {[%clk
0:00:20.6]} 50. Bc5 {[%clk 0:00:14.8]} 50... Kg6 {[%clk 0:00:21.5]} 51. Bb6
{[%clk 0:00:15.2]} 51... Kf5 {[%clk 0:00:22.4]} 52. Bc5 {[%clk 0:00:15.4]}
1/2-1/2

[Event "Late-Titled-Tuesday-Blitz-April-23-2024"]
[Site "Chess.com"]
[Date "2024.04.23"]
[Round "10"]
[White "Msb2"]
[Black "nihalsarin"]
[Result "1-0"]
[WhiteElo "3075"]
[BlackElo "3138"]
[TimeControl "180+1"]
[EndTime "15:58:08 PDT"]
[Termination "Msb2 won by resignation"]

1. d4 {[%clk 0:03:00.9]} 1... b5 {[%clk 0:02:52.8]} 2. e4 {[%clk 0:02:58.2]}
2... b4 {[%clk 0:02:53.1]} 3. Nf3 {[%clk 0:02:54.5]} 3... e6 {[%clk 0:02:52.7]}
4. Bd3 {[%clk 0:02:53.1]} 4... a5 {[%clk 0:02:53.3]} 5. O-O {[%clk 0:02:52.9]}
5... Ba6 {[%clk 0:02:48.9]} 6. Re1 {[%clk 0:02:50.8]} 6... Nf6 {[%clk
0:02:48.1]} 7. d5 {[%clk 0:02:41.3]} 7... Be7 {[%clk 0:02:42]} 8. c4 {[%clk
0:02:41]} 8... bxc3 {[%clk 0:02:40.8]} 9. Nxc3 {[%clk 0:02:41.3]} 9... Bxd3
{[%clk 0:02:39]} 10. Qxd3 {[%clk 0:02:42.2]} 10... Na6 {[%clk 0:02:39.7]} 11.
Bf4 {[%clk 0:02:23]} 11... O-O {[%clk 0:02:36.9]} 12. Rad1 {[%clk 0:02:21.6]}
12... h6 {[%clk 0:02:21.5]} 13. h3 {[%clk 0:02:20.8]} 13... Re8 {[%clk
0:02:02.4]} 14. b3 {[%clk 0:02:18.6]} 14... Bb4 {[%clk 0:01:58.2]} 15. Bd2
{[%clk 0:02:05.9]} 15... Nc5 {[%clk 0:01:51.8]} 16. Qc2 {[%clk 0:02:04.3]} 16...
d6 {[%clk 0:01:46.2]} 17. dxe6 {[%clk 0:01:54.9]} 17... Rxe6 {[%clk 0:01:47.1]}
18. e5 {[%clk 0:01:50.3]} 18... dxe5 {[%clk 0:01:31.6]} 19. a3 {[%clk
0:01:48.3]} 19... Qd3 {[%clk 0:01:08.8]} 20. Qxd3 {[%clk 0:01:29]} 20... Nxd3
{[%clk 0:01:09.7]} 21. axb4 {[%clk 0:01:29.9]} 21... axb4 {[%clk 0:01:08.3]} 22.
Na4 {[%clk 0:01:30.2]} 22... Nxe1 {[%clk 0:01:06.8]} 23. Bxe1 {[%clk 0:01:30.3]}
23... e4 {[%clk 0:01:02.9]} 24. Nd4 {[%clk 0:01:28.8]} 24... Rd6 {[%clk
0:00:41.7]} 25. Bxb4 {[%clk 0:01:28.8]} 25... Rd5 {[%clk 0:00:42.4]} 26. Nc3
{[%clk 0:00:58.1]} 26... Rg5 {[%clk 0:00:41.8]} 27. Nc6 {[%clk 0:00:40]} 27...
Ra6 {[%clk 0:00:42]} 28. Ne7+ {[%clk 0:00:40]} 28... Kh7 {[%clk 0:00:41.9]} 29.
Ned5 {[%clk 0:00:38.8]} 29... c5 {[%clk 0:00:38.9]} 30. Bxc5 {[%clk 0:00:35.2]}
30... Nxd5 {[%clk 0:00:31.5]} 31. Rxd5 {[%clk 0:00:34.2]} 31... Rxd5 {[%clk
0:00:12.9]} 32. Nxd5 {[%clk 0:00:35.1]} 32... f6 {[%clk 0:00:13.7]} 33. b4
{[%clk 0:00:34.2]} 33... Ra1+ {[%clk 0:00:13.4]} 34. Kh2 {[%clk 0:00:34.5]}
34... f5 {[%clk 0:00:11.5]} 35. b5 {[%clk 0:00:26.6]} 35... Rb1 {[%clk
0:00:11.9]} 36. b6 {[%clk 0:00:26.7]} 36... Rb5 {[%clk 0:00:12.1]} 37. Nc7
{[%clk 0:00:19.4]} 37... Rb3 {[%clk 0:00:12.1]} 38. Ne8 {[%clk 0:00:11.4]} 38...
Rb5 {[%clk 0:00:11.8]} 39. Nd6 {[%clk 0:00:11.2]} 39... Rb3 {[%clk 0:00:03.1]}
40. b7 {[%clk 0:00:11.1]} 40... f4 {[%clk 0:00:03.8]} 41. Ba7 {[%clk 0:00:10.4]}
41... e3 {[%clk 0:00:04.4]} 42. fxe3 {[%clk 0:00:11.3]} 42... fxe3 {[%clk
0:00:05.3]} 43. Kg3 {[%clk 0:00:06.7]} 43... Rb1 {[%clk 0:00:02.8]} 44. b8=Q
{[%clk 0:00:07]} 44... Rxb8 {[%clk 0:00:01.9]} 45. Bxb8 {[%clk 0:00:07.9]} 1-0

[Event "Late-Titled-Tuesday-Blitz-April-23-2024"]
[Site "Chess.com"]
[Date "2024.04.23"]
[Round "10"]
[White "malakismayil"]
[Black "wild3000"]
[Result "1-0"]
[WhiteElo "2573"]
[BlackElo "2420"]
[TimeControl "180+1"]
[EndTime "15:58:10 PDT"]
[Termination "malakismayil won on time"]

1. e4 {[%clk 0:03:00.9]} 1... a6 {[%clk 0:02:20]} 2. d4 {[%clk 0:02:59.4]} 2...
e6 {[%clk 0:02:19.5]} 3. Nc3 {[%clk 0:02:58.8]} 3... b5 {[%clk 0:02:19.5]} 4. a3
{[%clk 0:02:58.6]} 4... Bb7 {[%clk 0:02:19.1]} 5. Be3 {[%clk 0:02:59.1]} 5...
Nf6 {[%clk 0:02:17.9]} 6. f3 {[%clk 0:02:59.6]} 6... d6 {[%clk 0:02:17.8]} 7.
Qd2 {[%clk 0:03:00.1]} 7... c5 {[%clk 0:02:17.4]} 8. Rd1 {[%clk 0:02:59]} 8...
cxd4 {[%clk 0:02:17.2]} 9. Bxd4 {[%clk 0:02:58]} 9... Nc6 {[%clk 0:02:16.8]} 10.
Be3 {[%clk 0:02:57.7]} 10... Be7 {[%clk 0:02:16.1]} 11. Bf4 {[%clk 0:02:55.1]}
11... O-O {[%clk 0:02:13.4]} 12. Bxd6 {[%clk 0:02:50.6]} 12... Bxd6 {[%clk
0:02:13.5]} 13. Qxd6 {[%clk 0:02:51.3]} 13... Qb6 {[%clk 0:02:12.9]} 14. Qf4
{[%clk 0:02:30.2]} 14... Nd4 {[%clk 0:02:08.4]} 15. Bd3 {[%clk 0:02:27.5]} 15...
Rad8 {[%clk 0:01:57]} 16. Nge2 {[%clk 0:02:23.4]} 16... b4 {[%clk 0:01:55.2]}
17. axb4 {[%clk 0:02:21]} 17... Qxb4 {[%clk 0:01:56.1]} 18. O-O {[%clk
0:02:18.1]} 18... Nxe2+ {[%clk 0:01:53.5]} 19. Nxe2 {[%clk 0:02:19]} 19... Rfe8
{[%clk 0:01:21.4]} 20. b3 {[%clk 0:02:13.2]} 20... e5 {[%clk 0:01:19.2]} 21. Qe3
{[%clk 0:02:13.1]} 21... h5 {[%clk 0:01:15.9]} 22. Ng3 {[%clk 0:02:12.4]} 22...
g6 {[%clk 0:01:14.6]} 23. Bc4 {[%clk 0:02:10]} 23... Kg7 {[%clk 0:01:12.9]} 24.
Qg5 {[%clk 0:02:04.3]} 24... Qc5+ {[%clk 0:01:11.8]} 25. Kh1 {[%clk 0:02:03.7]}
25... Bc8 {[%clk 0:01:06.7]} 26. h3 {[%clk 0:01:43.7]} 26... Rxd1 {[%clk
0:00:57.8]} 27. Rxd1 {[%clk 0:01:43.3]} 27... Rh8 {[%clk 0:00:50.4]} 28. Qd2
{[%clk 0:01:23.1]} 28... h4 {[%clk 0:00:47.9]} 29. Nf1 {[%clk 0:01:21.6]} 29...
Nh5 {[%clk 0:00:45.9]} 30. Qd5 {[%clk 0:01:11.5]} 30... Qxd5 {[%clk 0:00:44]}
31. Bxd5 {[%clk 0:01:12.4]} 31... Nf4 {[%clk 0:00:40.1]} 32. Ne3 {[%clk
0:01:11]} 32... Rd8 {[%clk 0:00:30.1]} 33. Bc4 {[%clk 0:01:06.2]} 33... Re8
{[%clk 0:00:22.5]} 34. Nd5 {[%clk 0:01:01.7]} 34... Ne6 {[%clk 0:00:17.1]} 35.
Kg1 {[%clk 0:00:57.4]} 35... Nd4 {[%clk 0:00:15.1]} 36. c3 {[%clk 0:00:57.1]}
36... Ne6 {[%clk 0:00:12.4]} 37. Nb6 {[%clk 0:00:52.1]} 37... Bb7 {[%clk
0:00:10.8]} 38. Bd5 {[%clk 0:00:48.7]} 38... Bxd5 {[%clk 0:00:08.7]} 39. exd5
{[%clk 0:00:47.2]} 39... Nf4 {[%clk 0:00:06.2]} 40. d6 {[%clk 0:00:26.9]} 40...
Ne2+ {[%clk 0:00:05.8]} 41. Kf2 {[%clk 0:00:27.2]} 41... Nxc3 {[%clk 0:00:06.6]}
42. Rc1 {[%clk 0:00:23.1]} 42... Nb5 {[%clk 0:00:06.1]} 43. d7 {[%clk
0:00:23.4]} 43... Re6 {[%clk 0:00:02.9]} 44. d8=Q {[%clk 0:00:22.2]} 44... Rxb6
{[%clk 0:00:03.8]} 45. Qxb6 {[%clk 0:00:21.9]} 45... Nd4 {[%clk 0:00:03.2]} 46.
Rc7 {[%clk 0:00:20.1]} 46... g5 {[%clk 0:00:02.3]} 47. Qb7 {[%clk 0:00:17.9]}
47... Kg6 {[%clk 0:00:01.5]} 48. Rxf7 {[%clk 0:00:18.4]} 48... Ne6 {[%clk
0:00:01.7]} 49. Qe7 {[%clk 0:00:17.6]} 1-0